Cogmind - Beta 14 @@@ ROGUE MODE // 2024.08.21 @ 17:02:53 Player: leiavoia Result: Destroyed by EX-DEC with AWS/EX-DEC Performance ------------- Evolutions (1) 500 Regions Visited (5) 1000 Robots Destroyed (123) 615 Value Destroyed (2153) 2153 Prototype IDs (30) 600 Alien Tech Used (0) 0 Bonus (-504) -504 TOTAL SCORE: 4364 Bonus ------- High Alert Combat Kills 144 Follower Combat Kills 168 Aligned with FarCom 300 Friendly Fire -1116 Cogmind --------- Core Integrity 0/400 Matter 23/300 Energy 69/100 System Corruption 12% Temperature Cool (0) Movement Core (1500) Ox29 Location -9/Exiles Parts ------- > --- POWER (1) -------- (None) > --- PROPULSION (3) --- (None) > --- UTILITY (3) ------ Huge Storage Unit Improved Sensor Array Improved Trap Extractor (3/6 EMP Trap) (fused) > --- WEAPON (2) ------- Assault Rifle Heavy Assault Rifle > --- INVENTORY (25) --- Advanced Heat Sink YI-UF0's Bottomless Matter Pit (1067) Gravity Neutralizer Tractor Beam AS-neutralizer No. 17b Heavy EM Pulse Gun Particle Cannon Heavy Assault Rifle Shotgun Flak Cannon AWS/Autocannon Maul Deploy-a-Sentry Peak State ------------ > --- POWER ------------ Reinforced Fission Core > --- PROPULSION ------- Makeshift Leg > --- UTILITY ---------- Huge Storage Unit Improved Sensor Array > --- WEAPON ----------- Improved Assault Rifle 8R-AWN's Boregun > --- INVENTORY -------- Deuterium Engine Advanced Heat Sink YI-UF0's Bottomless Matter Pit Gravity Neutralizer Tractor Beam Improved Trap Extractor AS-neutralizer No. 17b Heavy EM Pulse Gun Particle Cannon Assault Rifle Heavy Assault Rifle Heavy Assault Rifle Shotgun Flak Cannon AWS/Autocannon Maul Deploy-a-Sentry [Rating: 35] Favorites ----------- Power Heavy Ion Engine Engine Heavy Ion Engine Power Core Reinforced Fission Core Propulsion Light Treads Treads Light Treads Leg Makeshift Leg Utility Medium Armor Plating Device Shield Generator Storage Huge Storage Unit Protection Medium Armor Plating Weapon Improved Assault Rifle Energy Gun Shock Rifle Ballistic Gun Improved Assault Rifle Ballistic Cannon Light Cannon Launcher Grenade Launcher Impact Weapon Maul Build | -11 -10 -10 -9 -9 -9 ------- Run | Yrd Mat Min Mat Min Exi Slots Evolved 2 | . . . 2 . . Power . | . . . . . . Propulsion 1 | . . . 1 . . Utility 1 | . . . 1 . . Weapon . | . . . . . . Parts Attached 92 | 7 12 12 31 4 26 Power 7 | 1 . 1 3 . 2 Engine 6 | 1 . 1 3 . 1 Core 1 | . . . . . 1 Reactor . | . . . . . . Propulsion 16 | 2 1 . 8 1 4 Treads 14 | 2 1 . 8 1 2 Leg 2 | . . . . . 2 Wheel . | . . . . . . Hover . | . . . . . . Flight . | . . . . . . Utility 31 | 2 5 6 12 1 5 Device 11 | 1 . 3 3 1 3 Storage 6 | 1 3 1 1 . . Processor . | . . . . . . Hackware . | . . . . . . Protection 14 | . 2 2 8 . 2 Artifact . | . . . . . . Weapon 38 | 2 6 5 8 2 15 Energy Gun 6 | 1 1 3 1 . . Energy Cannon . | . . . . . . Ballistic Gun 16 | 1 1 2 3 . 9 Ballistic Cannon 3 | . 1 . 2 . . Launcher 12 | . 3 . 2 1 6 Special Weapon . | . . . . . . Impact Weapon 1 | . . . . 1 . Slashing Weapon . | . . . . . . Piercing Weapon . | . . . . . . Special Melee Weapon . | . . . . . . Unidentified Prototypes 3 | . . 1 1 . 1 Corrupted Parts 2 | . . 2 . . . System Corruption 10 | . . 10 . . . Parts Lost 26 | . . . 7 . 19 Power 4 | . . . 1 . 3 Propulsion 8 | . . . 1 . 7 Utility 6 | . . . 3 . 3 Weapon 8 | . . . 2 . 6 Highest Loss Streak 9 | . . . 4 . 9 To Critical Strikes 5 | . . . . . 5 Average Slot Usage (%) 98 | . 99 100 99 100 94 Engine 11 | . 14 14 10 11 9 Treads 30 | . 27 28 32 33 29 Device 5 | . . . 5 11 11 Storage 12 | . 14 14 11 11 11 Protection 12 | . 13 13 16 11 9 Energy Gun 7 | . 6 18 10 . . Ballistic Gun 10 | . 13 . 10 11 12 Ballistic Cannon 2 | . 7 4 1 . . Launcher 2 | . . 4 . 10 1 Impact Weapon 1 | . . . . . 7 Peak Build Rating 35 | 7 9 22 23 22 35 Average Rating 16 | 5 8 12 19 21 23 On Entrance 12 | . 7 9 15 22 22 Naked Turns . | . . . . . . Heaviest Build 111 | 15 54 57 111 103 109 Greatest Support 63 | 40 40 40 63 63 63 Greatest Overweight (x) 5 | 1 1 1 1 1 5 Average Overweight (x) . | . . 1 . 1 1 Largest Inventory Capacity 25 | 8 20 20 25 25 25 Average Capacity 21 | 7 17 20 22 25 25 Most Carried 25 | 5 20 20 25 25 25 Average Carried 20 | 1 15 19 22 24 22 Final Capacity 25 | 8 20 20 25 25 25 Final Carried 25 | 5 20 19 25 25 15 Class Distribution -------------------- 94% | Mutant 5% | Scavenger-Mutant Dominant Class ---------------- Mutant | -10/Materials Mutant | -10/Mines Mutant | -9/Materials Mutant | -9/Mines Mutant | -9/Exiles Resources | -11 -10 -10 -9 -9 -9 ----------- Run | Yrd Mat Min Mat Min Exi Matter Collected 4107 | 327 605 270 2124 116 665 Remotely 264 | . . . 248 16 . Salvage Created 3285 | 195 1065 233 1407 225 160 Parts 209 | 14 62 13 85 25 10 Haulers Intercepted 7 | . 2 . 5 . . Recyclers Shooed 4 | . 3 . 1 . . Parts Field Recycled . | . . . . . . Retrieved Matter . | . . . . . . Parts Self-Destructed . | . . . . . . Prevented . | . . . . . . Kills | -11 -10 -10 -9 -9 -9 ------- Run | Yrd Mat Min Mat Min Exi Combat Hostiles Destroyed 74 | . 17 5 34 12 6 Guns 31 | . 9 . 21 . 1 Cannons 5 | . 1 . 4 . . AOE 38 | . 7 5 9 12 5 Classes Destroyed 17 | 3 5 . 6 . 3 Worker 12 | 1 6 . 3 2 . Builder 2 | . . . 2 . . Tunneler 7 | 4 2 . . 1 . Hauler 7 | . 2 . 5 . . Recycler 10 | 1 7 1 1 . . Mechanic 1 | . . . 1 . . Operator 1 | . 1 . . . . Turret 1 | . . . . . 1 Watcher 8 | . 3 . 5 . . Swarmer 30 | . 9 3 10 8 . Grunt 30 | . 8 2 16 4 . Brawler 1 | . . . 1 . . Duelist 2 | . . . 2 . . Protector 2 | . . . 2 . . Sentry 3 | . . . 3 . . Zionite 5 | . . . . . 5 Assembled 5 | . . . . . 5 Best Kill Streak 12 | 4 9 3 12 6 5 Combat Bots Only 12 | . 5 3 12 4 5 Max Kills in Single Turn 4 | 1 2 2 4 3 3 Gunslinging . | . . . . . . Exploded 4 | . 2 2 4 3 3 Melee . | . . . . . . Uniques/NPCs Destroyed 2 | . . 1 . . 1 YI-UF0 (-10/Mines) 8R-AWN (-9/Exiles) Combat | -11 -10 -10 -9 -9 -9 -------- Run | Yrd Mat Min Mat Min Exi Hostile Shots Fired 358 | . 51 3 125 10 169 Missed 93 | . 20 2 40 2 29 Damage Taken 4184 | . 340 9 1546 122 2167 Core 498 | . 90 . 69 . 339 Absorbed by Shields 300 | . . . . 7 293 Regen/Repaired (Parts) 260 | . 161 . 99 . . Core Remaining (%) 82 | 100 . 64 . . . Volleys Fired 303 | 19 75 16 106 7 80 Largest 2 | 2 2 2 2 1 2 Hottest 95 | 70 70 90 95 30 56 Shots Fired 520 | 38 133 28 188 7 126 Gun 424 | 38 97 24 172 . 93 Cannon 32 | . 22 . 10 . . Launcher 64 | . 14 4 6 7 33 Special . | . . . . . . Kinetic 281 | 19 83 . 86 . 93 Thermal 55 | 19 36 . . . . Explosive 64 | . 14 4 6 7 33 Electromagnetic 120 | . . 24 96 . . Robot Hit Streak 23 | 5 8 5 23 4 13 Robot Miss Streak 11 | 3 5 2 11 . 3 Penetration Max . | . . . . . . Secondary Targets 2 | . . . 2 . . Max Gunslinging Chain 1 | . . . 1 . . Shots Hit Robots 302 | 19 74 14 114 1 80 Core Hits 219 | 7 49 13 81 20 49 Critical Kills . | . . . . . . Critical Parts Destroyed 1 | . . . . . 1 Critical Strikes 4 | 1 2 . . . 1 Burn 3 | 1 2 . . . . Destroy 1 | . . . . . 1 Melee Attacks 3 | . . . . 3 . Impact 3 | . . . . 3 . Slashing . | . . . . . . Piercing . | . . . . . . Sneak Attacks . | . . . . . . Combat Hostiles . | . . . . . . Follow-up Attacks . | . . . . . . Damage Inflicted 8993 | 224 1857 589 3450 653 2220 Guns 3927 | 224 709 184 1736 . 1074 Cannons 431 | . 235 . 196 . . Explosions 4431 | . 893 344 1445 603 1146 Melee . | . . . . . . Ramming 204 | . 20 61 73 50 . Kinetic 2619 | 74 668 . 803 . 1074 Thermal 880 | 150 276 58 396 . . Explosive 3977 | . 893 286 1049 603 1146 Electromagnetic 1313 | . . 184 1129 . . Impact . | . . . . . . Slashing . | . . . . . . Piercing . | . . . . . . Highest Corruption 12 | . 2 12 . . 11 Average Corruption 2 | . 2 2 . . 6 Corruption Purged . | . . . . . . Corruption Blocked . | . . . . . . Effects 50 | . 29 20 . . 1 Message Errors 15 | . 10 5 . . . Matter Fused 8 | . 3 5 . . . Heat Flow Errors 9 | . 7 2 . . . Energy Discharges 8 | . 6 2 . . . Parts Fused 3 | . 1 1 . . 1 Data Loss (minor) 3 | . . 3 . . . Data Loss (major) 3 | . 2 1 . . . Alerts 1 | . . 1 . . . Overload Shots . | . . . . . . Overflow Damage 85 | . 49 7 16 . 13 Projectiles . | . . . . . . Explosions 85 | . 49 7 16 . 13 Melee . | . . . . . . Knockbacks 11 | . 4 1 6 . . Impact 1 | . . 1 . . . Kinetic 9 | . 4 . 5 . . Secondary 1 | . . . 1 . . Self-Inflicted Damage 484 | . 47 . 356 60 21 Shots 14 | . 4 . 7 2 1 Rammed 22 | . 3 7 7 5 . Targets Rammed 23 | . 4 7 7 5 . Kicked . | . . . . . . Crushed 1 | . 1 . . . . Highest Temperature 336 | 117 336 254 216 2 18 Average Temperature 66 | 49 74 93 58 2 7 Received Heat Transfer 456 | . 87 . 363 6 . Siege Activations . | . . . . . . Robots Corrupted . | . . . . . . Combat Hostiles . | . . . . . . Parts Fried 8 | . . . 8 . . Impact Corruptions . | . . . . . . Robots Melted . | . . . . . . Combat Hostiles . | . . . . . . Parts Melted 5 | 2 1 . 2 . . Heat Transferred 2130 | 518 962 100 550 . . Parts Sabotaged . | . . . . . . Parts Stolen . | . . . . . . Parts Stripped . | . . . . . . Power Chain Reactions 7 | . . 1 6 . . Alert | -11 -10 -10 -9 -9 -9 ------- Run | Yrd Mat Min Mat Min Exi Peak Influence 654 | 30 222 242 654 587 . Initial 255 | . 19 86 . 255 . Average 204 | 15 141 73 271 422 . Maximum Alert Level 2 | . 1 1 2 2 . Low Security (%) 53 | 100 71 78 39 . . Level 1 34 | . 28 21 43 57 . Level 2 11 | . . . 17 42 . Level 3 . | . . . . . . Level 4 . | . . . . . . Level 5 . | . . . . . . High Security . | . . . . . . Max Security . | . . . . . . Squads Dispatched 13 | . 5 . 8 . . Investigation 6 | . 3 . 3 . . Extermination . | . . . . . . Reinforcement 5 | . 2 . 3 . . Assault 2 | . . . 2 . . Garrison . | . . . . . . Intercept . | . . . . . . Searches Triggered . | . . . . . . Construction Impeded 1 | . . . 1 . . Haulers Reinforced . | . . . . . . Active Scanning Responses . | . . . . . . Cargo Convoy Interrupts . | . . . . . . Stealth | -11 -10 -10 -9 -9 -9 --------- Run | Yrd Mat Min Mat Min Exi Distress Signals 4 | . 1 . 3 . . Communications Jammed . | . . . . . . Distress Signals . | . . . . . . Times Spotted 116 | . 26 3 62 12 13 Peak Tracking Total 10 | . 5 2 10 4 9 Tactical Retreats 9 | . 2 . 4 . 3 Traps | -11 -10 -10 -9 -9 -9 ------- Run | Yrd Mat Min Mat Min Exi Traps Triggered 3 | . 2 . 1 . . Indirectly . | . . . . . . Trap Hack Attempts . | . . . . . . Triggered . | . . . . . . Disarmed . | . . . . . . Reprogrammed . | . . . . . . Reused 1 | . . . . . 1 Traps Extracted . | . . . . . . Installed 1 | . . . . . 1 Triggered . | . . . . . . Most Traps Carried 4 | . . 4 4 4 4 Machines | -11 -10 -10 -9 -9 -9 ---------- Run | Yrd Mat Min Mat Min Exi Machines Disabled 27 | . 2 . 8 3 14 Max in Single Turn 4 | . 2 . 3 2 4 Machines Repaired . | . . . . . . Machines Dismantled . | . . . . . . Machines Sabotaged . | . . . . . . Overloaded Fab Kills . | . . . . . . Hacking | -11 -10 -10 -9 -9 -9 --------- Run | Yrd Mat Min Mat Min Exi Machines Accessed 19 | . 6 1 9 1 2 Terminals 10 | . 3 . 6 1 . Fabricators . | . . . . . . Repair Stations 2 | . 1 . 1 . . Recycling Units 4 | . 2 . 2 . . Scanalyzers . | . . . . . . Garrison Access . | . . . . . . Total Hacks 54 | . 20 1 27 4 2 Successful 38 | . 14 1 19 2 2 Failed 15 | . 5 . 8 2 . Catastrophic 3 | . 1 . 2 . . Database Lockouts 1 | . 1 . . . . Manual 24 | . 9 . 10 4 1 Terminals 32 | . 8 . 20 4 . Fabricators . | . . . . . . Repair Stations 9 | . 4 . 5 . . Recycling Units 10 | . 8 . 2 . . Scanalyzers . | . . . . . . Garrison Access . | . . . . . . Terminal Hacks 21 | . 5 1 11 2 2 Record 1 | . . . . . 1 Part Schematic 2 | . 2 . . . . Robot Analysis 6 | . 2 . 2 2 . Prototype ID Bank 2 | . . . 2 . . Open Door 1 | . . 1 . . . Branch Access Points 1 | . . . 1 . . Emergency Access Points 1 | . . . 1 . . Terminal Index 1 | . . . 1 . . Locate Traps 2 | . 1 . 1 . . Hauler Manifests 2 | . . . 2 . . Zone Layout 1 | . . . 1 . . Derelict Proto ID Bank 1 | . . . . . 1 Fabricator Hacks . | . . . . . . Repair Station Hacks 8 | . 4 . 4 . . Scan Component 4 | . 2 . 2 . . Repair 4 | . 2 . 2 . . Recycling Unit Hacks 4 | . 2 . 2 . . Retrieve Components 4 | . 2 . 2 . . Scanalyzer . | . . . . . . Garrison Access Hacks . | . . . . . . Unauthorized Hacks 5 | . 3 . 2 . . Terminals 3 | . 1 . 2 . . Botnet 3 | . 1 . 2 . . Fabricators . | . . . . . . Repair Stations . | . . . . . . Recycling Units 2 | . 2 . . . . Tunnel 2 | . 2 . . . . Scanalyzers . | . . . . . . Garrison Access . | . . . . . . Data Cores Recovered . | . . . . . . Used . | . . . . . . Hacking Detections 12 | . 4 . 7 1 . Full Trace Events 1 | . . . 1 . . Feedback Events . | . . . . . . Feedback Blocked . | . . . . . . Robot Schematics Acquired . | . . . . . . Robots Built . | . . . . . . Authchips . | . . . . . . Time . | . . . . . . Total Robot Build Rating . | . . . . . . Part Schematics Acquired 2 | . 2 . . . . Parts Built . | . . . . . . Authchips . | . . . . . . Time . | . . . . . . Total Part Build Rating . | . . . . . . Parts Repaired 4 | . 2 . 2 . . Time 129 | . 52 . 77 . . Parts Recycled . | . . . . . . Recycled Matter . | . . . . . . Retrieved Matter . | . . . . . . Retrieved Components 21 | . 4 . 17 . . Parts Scanalyzed . | . . . . . . Part Schematics Acquired . | . . . . . . Parts Damaged . | . . . . . . Bothacking | -11 -10 -10 -9 -9 -9 ------------ Run | Yrd Mat Min Mat Min Exi Used RIF Installer . | . . . . . . Robots Hacked . | . . . . . . Non-combat . | . . . . . . Combat . | . . . . . . Robot Hacks Applied . | . . . . . . Relay Couplers Released . | . . . . . . Fabnet Peak Effective % . | . . . . . . Robots Rewired . | . . . . . . Allies Hacked . | . . . . . . Hacks Repelled . | . . . . . . Allies | -11 -10 -10 -9 -9 -9 -------- Run | Yrd Mat Min Mat Min Exi Total Allies 6 | . . 3 . 3 . Largest Group 3 | . . 3 3 2 . Highest-Rated Group 42 | . . 40 40 42 . Highest-Rated Ally 31 | . . 16 16 31 . Total Orders . | . . . . . . Ally Attacks 40 | . . . 39 1 . Total Damage 478 | . . . 456 22 . Kills 7 | . . . 6 1 . Allies Corrupted 1 | . . . . 1 . Allies Melted . | . . . . . . Intel | -11 -10 -10 -9 -9 -9 ------- Run | Yrd Mat Min Mat Min Exi Robot Analysis Total 6 | . 2 . 2 2 . Derelict Logs Recovered 3 | . . 1 . 2 . Drone Launches . | . . . . . . Drone Recoveries . | . . . . . . Exploration | -11 -10 -10 -9 -9 -9 ------------- Run | Yrd Mat Min Mat Min Exi Turns Passed 9360 | 252 2273 1525 2130 1146 2034 Spaces Moved 3347 | 66 861 552 726 460 682 Core 4 | 4 . . . . . Treads 3340 | 62 861 552 726 460 679 Legs 3 | . . . . . 3 Wheels . | . . . . . . Hover . | . . . . . . Flight . | . . . . . . Fastest Speed 50 | 50 160 240 160 240 240 Average Speed 232 | 154 221 240 223 240 252 Slowest Speed 560 | 160 240 240 240 240 560 Overloaded Moves . | . . . . . . Propulsion Burnouts . | . . . . . . Robots Hopped . | . . . . . . Cave-ins Triggered . | . . . . . . Exploration Rate (%) 74 | 5 99 96 73 97 79 Regions Visited 5 Branch Regions 3 Pre-discovered Areas 5 | . 2 1 . 1 1 Known Exits Taken 1 | . . . 1 . . Unknown Exits Taken 4 | 1 1 1 . 1 . Scrap Searched 2 | . . 1 . 1 . Spaces Dug 28 | . 5 11 . 12 . Terrain Destroyed 355 | . 75 36 99 48 97 Melee . | . . . . . . Projectile 1 | . . . . . 1 AOE 354 | . 75 36 99 48 96 Terrain Rammed . | . . . . . . Walls Destroyed . | . . . . . . Machines Disabled . | . . . . . . Actions | -11 -10 -10 -9 -9 -9 --------- Run | Yrd Mat Min Mat Min Exi Total 4377 | 175 1092 716 1043 482 869 Wait 464 | 78 110 114 114 1 47 Move 3342 | 65 860 551 725 459 682 Hop . | . . . . . . Pick Up 84 | 6 20 7 33 1 17 Fast Attach 17 | 6 4 . 4 1 2 Attach 25 | 1 . . 11 . 13 Detach 2 | . 1 . 1 . . Swap 50 | . 8 12 16 3 11 Drop 63 | . 10 9 26 2 16 Fire 303 | 19 75 16 106 7 80 Melee 3 | . . . . 3 . Ram . | . . . . . . Kick . | . . . . . . Crush 23 | . 4 7 7 5 . Escape Stasis . | . . . . . . Rewire . | . . . . . . Trap 1 | . . . . . 1 Miscellaneous . | . . . . . . Route ------- -11/Scrapyard -10/Materials (discovered 5 exits: *Mat x3 / *Min / [*Sub]) -10/Mines (discovered 2 exits: *Mat x2) -9/Materials (discovered 3 exits: *Mat x2 / *Min) -9/Mines (discovered 3 exits: *Mat x2 / *Exi) -9/Exiles (discovered 1 exit: [*Min]) History --------- Turn | Location | Event 47 | -11/Scrapyard | Discovered new exit (range 15) 253 | -11/Scrapyard | Entered Materials 312 | -10/Materials | Build established: Mutant 407 | -10/Materials | Repaired Lgt. Armor Plating 632 | -10/Materials | Discovered new exit (range 3) 744 | -10/Materials | Central database locked down 964 | -10/Materials | Discovered new exit (range 15) 1305 | -10/Materials | Discovered new exit (range 9) 1965 | -10/Materials | Discovered new exit (range 7) 2228 | -10/Materials | Repaired Lgt. Treads 2421 | -10/Materials | Discovered new exit (range 15) 2526 | -10/Materials | Entered Mines 2700 | -10/Mines | Learned location of Storage (-8) 2906 | -10/Mines | Discovered new exit (range 11) 2913 | -10/Mines | Assisted by bots powering up and referring to "LRC-V3" 2968 | -10/Mines | Learned 2 Materials zone layouts 3076 | -10/Mines | YI-UF0 nonchalantly dropped a Grenade Launcher on the ground 3083 | -10/Mines | Murdered YI-UF0 3102 | -10/Mines | Found Corrupted Prototype Storage 3207 | -10/Mines | Met a Derelict who couldn't figure out how to use a Trap Extractor 3382 | -10/Mines | Discovered new exit (range 9) 3545 | -10/Mines | Identified YI-UF0's Bottomless Matter Pit 3794 | -10/Mines | Found a hidden stash of uninstalled traps 4049 | -10/Mines | System corruption reached 10% 4051 | -10/Mines | Entered Materials 4051 | -9/Materials | Accompanied by 3 allies 4051 | -9/Materials | Evolved 2 slots: Propulsion x1, Utility x1 4052 | -9/Materials | Identified exit to Materials 4825 | -9/Materials | Discovered new exit (range 13) 5204 | -9/Materials | Repaired Seismic Detector 5256 | -9/Materials | Repaired Imp. Assault Rifle 5430 | -9/Materials | Build established: Scavenger-Mutant 5456 | -9/Materials | Identified exit to Mines 5527 | -9/Materials | Discovered exit to Materials (range 16) 5948 | -9/Materials | Build established: Mutant 6051 | -9/Materials | First assault squad dispatched 6158 | -9/Materials | Destroyed 12 combat bots 6166 | -9/Materials | Lost 4 parts (1n2u1w) 6181 | -9/Materials | Entered Mines 6540 | -9/Mines | Received a Mining Laser from a helpful Derelict 6746 | -9/Mines | Discovered exit to Materials (range 8) 7034 | -9/Mines | Discovered exit to Materials (range 6) 7283 | -9/Mines | Excavation squad dispatched 7283 | -9/Mines | A large section of the Mines collapsed 7315 | -9/Mines | Deemed a non-threat by the Exiles lab entrance 7315 | -9/Mines | Discovered new exit (range 5) 7327 | -9/Mines | Entered Exiles 7387 | -9/Exiles | Met 8R-AWN 7423 | -9/Exiles | Met EX-HEX 7531 | -9/Exiles | Met EX-DEC 7589 | -9/Exiles | Learned location of Zion (-6) 7651 | -9/Exiles | Met EX-BIN 7680 | -9/Exiles | Aligned with FarCom system 7683 | -9/Exiles | Given EX-Vault access code 7745 | -9/Exiles | Opened EX-Vault 7803 | -9/Exiles | Warned to stay clear of 0b10 Research branches 7966 | -9/Exiles | Discovered new exit (range 10) 8302 | -9/Exiles | Found Deploy-a-Sentry 8305 | -9/Exiles | Found Deploy-a-Sentry 8309 | -9/Exiles | Found Deploy-a-Sentry 8322 | -9/Exiles | Found AWS/Autocannon 8713 | -9/Exiles | Warned about trapping Exiles lab 8780 | -9/Exiles | Attacked by the Exiles 8937 | -9/Exiles | Lost 4 parts (3n1u) 8982 | -9/Exiles | Destroyed 8R-AWN 9001 | -9/Exiles | Found Prototype Device 9009 | -9/Exiles | Found Prototype Ballistic Gun 9082 | -9/Exiles | Core integrity fell below 50% 9340 | -9/Exiles | Identified 8R-AWN's Boregun 9343 | -9/Exiles | Core integrity fell below 20% 9347 | -9/Exiles | System corruption reached 10% 9361 | -9/Exiles | Destroyed by EX-DEC with AWS/EX-DEC Last Messages --------------- 09339_ Lgt. Treads destroyed. 09340_ Identified 8R-AWN's Boregun. 09341_ HV Slug penetrates EX-DEC. 09342_ The unstable cave ceiling collapses. 09343_ Mak. Leg destroyed. 09344_ HV Slug penetrates EX-DEC. 09347_ HV Slug penetrates Earth. 09347_ HV Slug penetrates Wall. 09349_ Imp. Assault Rifle destroyed. 09350_ Rnf. Fission Core destroyed. 09351_ HV Slug penetrates EX-DEC. 09355_ The unstable cave ceiling collapses. 09355_ HV Slug penetrates EX-DEC. 09355_ EX-DEC suffers critical hit (Destroy). 09355_ Destroyed Prototype Engine. 09357_ The unstable cave ceiling collapses. 09357_ 8R-AWN's Boregun destroyed. 09358_ System corrupted: Imp. Trap Extractor fused. 09358_ Deuterium Engine destroyed. Map ----- +----------------------------------------------------+ | ????????????#" """" | | ????????????##" | | ?????????????#" | | ?????????????## | | ??????????????#" " "" | | ??????????????#"""" ""## ##""" " " | | ??????????????#"" ""#### ######""" | | ??????????????#" """"##??# #????###"" | | ??????????????#""" """#??## ####???### | | ??????????????## ""##??# "!#?????? | | ???????????????#"" """##???#" !#?????? | | ???????????????##""" ##????#" "#?????? | | ????????????????##"""" ##?????#!!""!"#?????? | | ?????????????????### #??????########?????? | | ???????????????????##### ##???????????????????? | | ?????????????????????### #???????????????????? | | ?????????????????????# # ###??????????????????? | | ????????????????????#### # #??????????????????? | | ????????????????????# ##??????????????????? | | ?????????????????#### ## #??????????????????? | | ????????????????"""" # # #??????????????????? | | ????????????????""""" ##??????????????????? | | ??????????????"? """ # #???????????????????? | | ?????????????#"" " ##??????????????????? | | ?????????????#"" ## #??????????????????? | | ??????????????# # @ # #??????????????????? | | ?????????????"" """""???????????????? | | ?????????????"" c "??????????????? | | ???????????? c " ????????????? | | ??????????? " ????????????? | | ???????????? = " ????????????? | | ???????????? #"????????????? | | ???????????? """""#?????????????? | | ????????????? # #"""######?????????????? | | ????????????? "####"" "??????????????????? | | ?????????????? "???#"" ""??????????????????? | | ?????????????? ?"??????"""""???????????????????? | | ??????????????????????????? ?????????????????????? | | ?????????????????????????????????????????????????? | | ?????????????????????????????????????????????????? | | ?????????????????????????????????????????????????? | | ?????????????????????????????????????????????????? | | ?????????????????????????????????????????????????? | | ?????????????????????????????????????????????????? | | | | | | | | | | | | | +----------------------------------------------------+ Best States ------------- Heat Dissipation 47 Energy Generation 19 Energy Capacity 310 Matter Stores 300 Matter Capacity 300 Sight Range 16 Robot Scan Range 15 Terrain Scan Density 10 Armor Coverage 450 Core Shielding 20 Evasion (%) 40 Recoil Reduction 3 Trap Extractor Capacity 6 Item Schematics ----------------- Huge Storage Unit | -10/Materials | Hacked Cargo Storage Unit | -10/Materials | Hacked Robot Schematics ------------------ None Fabricated ------------ Nothing Alien Tech Used ----------------- None Achievements -------------- None Challenges ------------ None Game ------ Seed FieldThunderTelecube Manual? 1 Play Time 01:01:02 Cumulative 1100.7 hours Start 2024.08.21 @ 15:29:55 End 2024.08.21 @ 17:02:53 Sessions 3 Manual Loads 0 Difficulty Rogue Special Mode None Game No. 235 Rogue 203 Adventurer 31 Explorer 1 Win Type - Total 51 Types 33/1/9/7/0/0/1/0/0 Lore% 65 Gallery% 85 Achievement% 81 Wizard Run 0 Options --------- Layout 1 ASCII 0 Keyboard 0 Movement Arrows Keybinds 0 Fullscreen 1 Font 24/Terminus Map View 50x40 Zoom Use 0% Tactical HUD 1 Map Filters NONE Filters NONE Steam 1 RUN: 73ab1e6e-9900-4a6a-81dd-bf5aa4754652